{"text_format":"1","workbook":"xlsx","n_sheets":4,"sheets":["المعطيات","data","data2","salim"],"not_rendered":{"charts":0,"images":0,"macros":1,"external_links":2,"defined_names":11,"comments":0,"pivot_tables":0},"unopened":[],"bounds":{"document_bytes":16777216,"sheet_cells":100000,"rows_first":2000,"rows_last":500,"rows_between":2000,"halvings":0,"cell_chars":16384,"cell_head_chars":4096},"cells_cut":0,"cells_raw":0,"read":"whole","date_system":"1900"}

{"sheet":"المعطيات","index":0,"n_rows":16,"n_cols":19,"rows_kept":16,"cut":false,"hidden":false,"merged":[[7,13,7,15],[8,13,8,15],[10,13,10,15],[2,12,3,12],[4,12,5,12],[6,12,7,12],[6,0,6,1],[6,2,6,4],[8,2,8,4],[5,0,5,1],[5,2,5,4],[7,2,7,3],[7,0,7,1],[8,0,8,1],[4,2,4,4],[1,0,1,9],[2,0,2,9],[4,0,4,1],[3,0,3,3],[15,1,15,4],[8,12,9,12],[10,12,11,12],[13,1,13,4],[14,1,14,4],[13,7,13,10],[10,5,10,7],[10,8,10,9],[8,6,8,8],[10,0,10,3],[9,0,9,1],[9,2,9,4],[9,6,9,8],[13,13,13,17],[14,13,14,17],[1,17,1,22],[14,7,14,10],[15,7,15,10],[3,6,3,8],[6,6,6,8],[5,6,5,8],[1,12,1,15],[11,13,11,15],[2,13,2,15],[4,13,4,15],[6,13,6,15],[9,13,9,15],[3,13,3,15],[5,13,5,15]]}
[]
["الجمهورية الجزائرية الديمقراطية الشعبية",null,null,null,null,null,null,null,null,null,null,null,"أيام الامتحان",null,null,null,"الفترة ","مواد الإمتحان"]
["وزارة التربية الوطنية",null,null,null,null,null,null,null,null,null,null,1,"اليوم الأول","2019-06-16",null,null,"الصباحية ","اللغة العربية"]
["الديوان الوطني للامتحانات والمسابقات",null,null,null,null,"فرع :","وهران ",null,null,null,null,2,null,"2019-06-16",null,null,"المسائية","الرياضيات"]
["مديرية التربية لولاية :",null,"تلمسان",null,null,null,null,null,null,null,null,3,"اليوم الثاني","2019-06-17",null,null,"الصباحية ","التربية الإسلامية"]
["امتحان :",null,"شهادة البكالوريا",null,null,"دورة :","جوان   2019",null,null,null,null,4,null,"2019-06-17",null,null,"المسائية","اللغة الانجليزية"]
["مركز الإجراء :",null,"ثانوية بوزيدي محمد ",null,null,"بـ :","صبرة ",null,null,null,null,5,"اليوم الثالث","2019-06-18",null,null,"الصباحية ","علوم الطبيعة و الحياة ","تكنولوجيا "]
["رمز المركز :",null,7182,null,null,null,null,null,null,null,null,6,null,"2019-06-18",null,null,"المسائية","اللغة الفرنسية"]
["رئيس المركز :",null,null,null,null,"الإطار :","مدير ثانوية ",null,null,null,null,7,"اليوم الرابع","2019-06-19",null,null,"الصباحية ","التاريخ والجغرافيا"]
["نائب رئيس المركز :",null,null,null,null,"الإطار :","ناظر ",null,null,null,null,8,null,"2019-06-19",null,null,"المسائية","الفلسفة"]
["عدد الساعات الممنوحة للحراس",null,null,null,null,"عدد أيام الامتحان",null,null,5,null,null,9,"اليوم الخامس","2019-06-20",null,null,"الصباحية ","الفيزياء والكيمياء"]
[null,null,null,null,null,null,null,null,null,null,null,10,null,"2019-06-20",null,null,"المسائية","إسبانية "]
[]
[null,"عدد الأساتـــذة الحراس :",null,null,null,113,null,"عدد فترات الحراسة :",null,null,null,9,null,"عدد الحراس في كل فترات الامتحان  : ",null,null,null,null,{"$f":"L16*L14","v":531}]
[null,"عدد الحراس في القاعة :",null,null,null,3,null,"عدد الحراس في الاحتياط :",null,null,null,14,null,"عدد فترات الحراسة لكل حارس :",null,null,null,null,{"$f":"S14/F14","v":4.6991150442477876}]
[null,"عدد القــــــــــــاعات",null,null,null,15,null,"عدد الحراس في كل فترة : ",null,null,null,{"$f":"(F16*F15)+L15","v":59}]

{"sheet":"data","index":1,"n_rows":211,"n_cols":10,"rows_kept":211,"cut":false,"hidden":true,"merged":[[6,1,8,12],[10,6,10,7]]}
[]
[]
[]
[]
[]
[]
[null,"معلومات الحراس"]
[]
[]
[]
["الرقم","اللقب والاسم","الاطار","المادة","مؤسسة العمل","الجنس","المواد",null,"المؤسسات","الجنس"]
[1,"لحسايني محمد","أ.ت.ث","اللغة الانجليزية","ثا.بوعزة ميلود مغنية ","H","اللغة الانجليزية","ANG","ثا.بوعزة ميلود مغنية ","H"]
[2,"علي","أ.ت.ث","اللغة العربية","ثا.بوعزة ميلود مغنية ","H","اللغة العربية","AR","متوسطة العابدي - صبرة ","F"]
[3,"عائشة 1","أ.ت.ث","اللغة العربية","ثا.بوعزة ميلود مغنية ","F","التربية الإسلامية","EI","إبتداية الخوارزمي - مغنية "]
[4,"رقية 1","أ.ت.ث","التربية البدنية","ثا.بوعزة ميلود مغنية ","F","التربية البدنية","EP","متوسطة ابو هريرة "]
[5,"سعيد ","أ.ت.ث","اللغة الفرنسية","ثا.بوعزة ميلود مغنية ","H","اللغة الفرنسية","FR","ثا.المقـــري "]
[6,"أيمن 1","أ.ت.ث","التربية البدنية","ثا.بوعزة ميلود مغنية ","H","التاريخ والجغرافيا","HG"]
[7,"فاطمة 1","أ.ت.ث","معلوماتية ","ثا.بوعزة ميلود مغنية ","F","الرياضيات","MAT"]
[8,"لحسايني محمد","أ.ت.ث","اللغة العربية","ثا.بوعزة ميلود مغنية ","H","الفيزياء والكيمياء","PYC"]
[9,"علي","أ.ت.ث","علوم الطبيعة و الحياة ","ثا.بوعزة ميلود مغنية ","H","معلوماتية ","INF"]
[10,"عائشة 2","أ.ت.ث","التربية البدنية","ثا.بوعزة ميلود مغنية ","F","الفلسفة","PHIL"]
[11,"رقية 2","أ.ت.ث","اللغة الفرنسية","ثا.بوعزة ميلود مغنية ","F","علوم الطبيعة و الحياة ","SVT"]
[12,"سعيد ","أ.ت إ","اللغة العربية","إبتداية الخوارزمي - مغنية ","H","تكنولوجيا ","TEH"]
[13,"أيمن 2","أ.ت إ","اللغة العربية","إبتداية الخوارزمي - مغنية ","H","إسبانية ","ESP"]
[14,"فاطمة 2","أ.ت إ","اللغة العربية","إبتداية الخوارزمي - مغنية ","F"]
[15,"لحسايني محمد","أ.ت إ","اللغة العربية","إبتداية الخوارزمي - مغنية ","H"]
[16,"علي","أ.ت إ","اللغة العربية","إبتداية الخوارزمي - مغنية ","H"]
[17,"عائشة 3","أ.ت إ","اللغة العربية","إبتداية الخوارزمي - مغنية ","F"]
[18,"رقية 3","أ.ت إ","اللغة العربية","إبتداية الخوارزمي - مغنية ","F"]
[19,"سعيد ","أ.ت إ","اللغة العربية","إبتداية الخوارزمي - مغنية ","H"]
[20,"أيمن 3","أ.ت إ","اللغة العربية","إبتداية الخوارزمي - مغنية ","H"]
[21,"فاطمة 3","أ.ت إ","اللغة العربية","إبتداية الخوارزمي - مغنية ","F"]
[22,"لحسايني محمد","أ.ت إ","اللغة العربية","إبتداية الخوارزمي - مغنية ","H"]
[23,"علي","أ.ت إ","اللغة العربية","إبتداية الخوارزمي - مغنية ","H"]
[24,"عائشة 4","أ.ت إ","اللغة الفرنسية","إبتداية الخوارزمي - مغنية ","F"]
[25,"رقية 4","أ.ت إ","اللغة الفرنسية","إبتداية الخوارزمي - مغنية ","F"]
[26,"سعيد ","أ.ت .م","التربية الإسلامية","متوسطة ابو هريرة ","H"]
[27,"أيمن 4","أ.ت .م","اللغة الفرنسية","متوسطة ابو هريرة ","H"]
[28,"فاطمة 4","أ.ت .م","التاريخ والجغرافيا","متوسطة ابو هريرة ","F"]
[29,"لحسايني محمد","أ.ت .م","التاريخ والجغرافيا","متوسطة ابو هريرة ","H"]
[30,"علي","أ.ت .م","الرياضيات","متوسطة ابو هريرة ","H"]
[31,"عائشة 5","أ.ت .م","التاريخ والجغرافيا","متوسطة ابو هريرة ","F"]
[32,"رقية 5","أ.ت .م","التربية الإسلامية","متوسطة ابو هريرة ","F"]
[33,"سعيد ","أ.ت .م","اللغة الفرنسية","متوسطة ابو هريرة ","H"]
[34,"أيمن 5","أ.ت .م","التربية الإسلامية","متوسطة ابو هريرة ","H"]
[35,"فاطمة 5","أ.ت .م","اللغة الفرنسية","متوسطة ابو هريرة ","F"]
[36,"لحسايني محمد","أ.ت .م","التاريخ والجغرافيا","متوسطة ابو هريرة ","H"]
[37,"علي","أ.ت .م","التاريخ والجغرافيا","متوسطة ابو هريرة ","H"]
[38,"عائشة 6","أ.ت .م","الرياضيات","متوسطة العابدي - صبرة ","F"]
[39,"رقية 6","أ.ت .م","التاريخ والجغرافيا","متوسطة العابدي - صبرة ","F"]
[40,"سعيد ","أ.ت .م","التربية الإسلامية","متوسطة العابدي - صبرة ","H"]
[41,"أيمن 6","أ.ت .م","اللغة الفرنسية","متوسطة العابدي - صبرة ","H"]
[42,"فاطمة 6","أ.ت .م","التربية الإسلامية","متوسطة العابدي - صبرة ","F"]
[43,"لحسايني محمد","أ.ت .م","اللغة الفرنسية","متوسطة العابدي - صبرة ","H"]
[44,"علي","أ.ت .م","التاريخ والجغرافيا","متوسطة العابدي - صبرة ","H"]
[45,"عائشة 7","أ.ت .م","التاريخ والجغرافيا","متوسطة العابدي - صبرة ","F"]
[46,"رقية 7","أ.ت .م","الرياضيات","متوسطة العابدي - صبرة ","F"]
[47,"سعيد ","أ.ت .م","التاريخ والجغرافيا","متوسطة العابدي - صبرة ","H"]
[48,"أيمن 7","أ.ت .م","التربية الإسلامية","متوسطة العابدي - صبرة ","H"]
[49,"فاطمة 7","أ.ت .م","اللغة الفرنسية","متوسطة العابدي - صبرة ","F"]
[50,"لحسايني محمد","أ.ت .م","التربية الإسلامية","متوسطة العابدي - صبرة ","H"]
[51,"علي","أ.ت .م","اللغة الفرنسية","متوسطة العابدي - صبرة ","H"]
[52,"عائشة 8","أ.ت .م","اللغة العربية","متوسطة العابدي - صبرة ","F"]
[53,"رقية 8","أ.ت إ","اللغة العربية","إبتداية الخوارزمي - مغنية ","F"]
[54,"سعيد ","أ.ت إ","اللغة العربية","إبتداية الخوارزمي - مغنية ","H"]
[55,"أيمن 8","أ.ت إ","اللغة العربية","إبتداية الخوارزمي - مغنية ","H"]
[56,"فاطمة 8","أ.ت إ","اللغة العربية","إبتداية الخوارزمي - مغنية ","F"]
[57,"لحسايني محمد","أ.ت.ث","التربية الإسلامية","ثا.المقـــري ","H"]
[58,"علي","أ.ت.ث","اللغة الفرنسية","ثا.المقـــري ","H"]
[59,"عائشة 9","أ.ت.ث","التربية الإسلامية","ثا.المقـــري ","F"]
[60,"رقية 9","أ.ت.ث","اللغة الفرنسية","ثا.المقـــري ","F"]
[61,"سعيد ","أ.ت.ث","التاريخ والجغرافيا","ثا.المقـــري ","H"]
[62,"أيمن 9","أ.ت.ث","التاريخ والجغرافيا","ثا.المقـــري ","H"]
[63,"فاطمة 9","أ.ت.ث","الرياضيات","ثا.المقـــري ","F"]
[64,"لحسايني محمد","أ.ت.ث","التاريخ والجغرافيا","ثا.المقـــري ","H"]
[65,"علي","أ.ت.ث","التربية الإسلامية","ثا.المقـــري ","H"]
[66,"عائشة 10","أ.ت.ث","اللغة الفرنسية","ثا.المقـــري ","F"]
[67,"رقية 10","أ.ت.ث","التربية الإسلامية","ثا.المقـــري ","F"]
[68,"سعيد ","أ.ت.ث","اللغة الفرنسية","ثا.المقـــري ","H"]
[69,"أيمن 10","أ.ت.ث","التربية الإسلامية","ثا.المقـــري ","H"]
[70,"فاطمة 10","أ.ت.ث","اللغة الفرنسية","ثا.المقـــري ","F"]
[71,"لحسايني محمد","أ.ت.ث","التربية الإسلامية","ثا.المقـــري ","H"]
[72,"علي","أ.ت.ث","اللغة الفرنسية","ثا.المقـــري ","H"]
[73,"عائشة 11","أ.ت.ث","التاريخ والجغرافيا","ثا.المقـــري ","F"]
[74,"رقية 11","أ.ت.ث","التاريخ والجغرافيا","ثا.المقـــري ","F"]
[75,"سعيد ","أ.ت.ث","الرياضيات","ثا.المقـــري ","H"]
[76,"أيمن 11","أ.ت.ث","التاريخ والجغرافيا","ثا.المقـــري ","H"]
[77,"فاطمة 11","أ.ت.ث","التربية الإسلامية","ثا.المقـــري ","F"]
[78,"لحسايني محمد","أ.ت.ث","اللغة الفرنسية","ثا.المقـــري ","H"]
[79,"علي","أ.ت.ث","التربية الإسلامية","ثا.المقـــري ","H"]
[80,"عائشة 12","أ.ت.ث","اللغة الفرنسية","ثا.المقـــري ","F"]
[81,"رقية 12","أ.ت إ","اللغة العربية","إبتداية الخوارزمي - مغنية ","F"]
[82,"سعيد ","أ.ت إ","اللغة العربية","إبتداية الخوارزمي - مغنية ","H"]
[83,"أيمن 12","أ.ت إ","اللغة العربية","إبتداية الخوارزمي - مغنية ","H"]
[84,"فاطمة 12","أ.ت إ","اللغة العربية","إبتداية الخوارزمي - مغنية ","F"]
[85,"لحسايني محمد","أ.ت م","اللغة الفرنسية","متوسطة ابو هريرة ","H"]
[86,"علي","أ.ت م","اللغة الفرنسية","متوسطة ابو هريرة ","H"]
[87,"عائشة 13","أ.ت م","اللغة العربية","متوسطة ابو هريرة ","F"]
[88,"رقية 13","أ.ت م","اللغة العربية","متوسطة ابو هريرة ","F"]
[89,"رقية 13","أ.ت إ","اللغة العربية","إبتداية الخوارزمي - مغنية ","F"]
[90,"سعيد ","أ.ت إ","اللغة العربية","إبتداية الخوارزمي - مغنية ","H"]
[91,"أيمن 13","أ.ت إ","اللغة العربية","إبتداية الخوارزمي - مغنية ","H"]
[92,"فاطمة 13","أ.ت إ","اللغة العربية","إبتداية الخوارزمي - مغنية ","F"]
[93,"لحسايني محمد","أ.ت م","اللغة الفرنسية","متوسطة ابو هريرة ","H"]
[94,"علي","أ.ت م","اللغة الفرنسية","متوسطة ابو هريرة ","H"]
[95,"عائشة 14","أ.ت م","اللغة العربية","متوسطة ابو هريرة ","F"]
[96,"رقية 14","أ.ت م","اللغة العربية","متوسطة ابو هريرة ","F"]
[97,"رقية 14","أ.ت إ","اللغة العربية","إبتداية الخوارزمي - مغنية ","F"]
[98,"سعيد ","أ.ت إ","اللغة العربية","إبتداية الخوارزمي - مغنية ","H"]
[99,"أيمن 14","أ.ت إ","اللغة العربية","إبتداية الخوارزمي - مغنية ","H"]
[100,"فاطمة 14","أ.ت إ","اللغة العربية","إبتداية الخوارزمي - مغنية ","F"]
[101,"لحسايني محمد","أ.ت م","اللغة الفرنسية","متوسطة ابو هريرة ","H"]
[102,"علي","أ.ت م","اللغة الفرنسية","متوسطة ابو هريرة ","H"]
[103,"عائشة 15","أ.ت م","اللغة العربية","متوسطة ابو هريرة ","F"]
[104,"رقية 15","أ.ت م","اللغة العربية","متوسطة ابو هريرة ","F"]
[105,"رقية 15","أ.ت إ","اللغة العربية","إبتداية الخوارزمي - مغنية ","F"]
[106,"سعيد ","أ.ت إ","اللغة العربية","إبتداية الخوارزمي - مغنية ","H"]
[107,"فاطمة 15","أ.ت م","تكنولوجيا ","متوسطة العابدي - صبرة ","F"]
[108,"لحسايني محمد","أ.ت م","تكنولوجيا ","ثا.المقـــري ","H"]
[109,"علي","أ.ت م","تكنولوجيا ","ثا.المقـــري ","H"]
[110,"عائشة 16","أ.ت م","علوم الطبيعة و الحياة ","ثا.المقـــري ","F"]
[111,"رقية 15","أ.ت م","تكنولوجيا ","ثا.المقـــري ","F"]
[112,"رقية 15","أ.ت م","الفيزياء والكيمياء","ثا.المقـــري ","F"]
[113,"سعيد ","أ.ت م","الرياضيات","ثا.المقـــري ","H"]
[114]
[115]
[116]
[117]
[118]
[119]
[120]
[121]
[122]
[123]
[124]
[125]
[126]
[127]
[128]
[129]
[130]
[131]
[132]
[133]
[134]
[135]
[136]
[137]
[138]
[139]
[140]
[141]
[142]
[143]
[144]
[145]
[146]
[147]
[148]
[149]
[150]
[151]
[152]
[153]
[154]
[155]
[156]
[157]
[158]
[159]
[160]
[161]
[162]
[163]
[164]
[165]
[166]
[167]
[168]
[169]
[170]
[171]
[172]
[173]
[174]
[175]
[176]
[177]
[178]
[179]
[180]
[181]
[182]
[183]
[184]
[185]
[186]
[187]
[188]
[189]
[190]
[191]
[192]
[193]
[194]
[195]
[196]
[197]
[198]
[199]
[200]

{"sheet":"data2","index":2,"n_rows":120,"n_cols":18,"rows_kept":120,"cut":false,"hidden":false,"merged":[[2,16,2,17],[3,10,3,11],[3,12,3,13],[3,14,3,15],[3,16,3,17],[3,8,3,9],[2,8,2,9],[2,10,2,11],[2,12,2,13],[2,14,2,15]]}
[null,null,null,null,null,null,null,"الاحتياط",{"$f":"COUNTIF(I6:I135,\"ح\")","v":0},{"$f":"COUNTIF(J6:J135,\"ح\")","v":0},0,0,0,0,0,0,0,0]
[null,null,null,null,null,null,null,"الحراس",{"$f":"I144-I1","v":0},0,0,0,0,0,0,0,0,0]
[null,null,null,null,null,null,null,"التاريخ",{"$f":"المعطيات!N3","v":"2019-06-16"},null,{"$f":"المعطيات!N5","v":"2019-06-17"},null,{"$f":"المعطيات!N7","v":"2019-06-18"},null,{"$f":"المعطيات!N10","v":"2019-06-19"},null,{"$f":"المعطيات!N12","v":"2019-06-20"}]
[null,null,null,null,null,null,null,"اليوم ","اليوم الأول",null,"اليوم الثاني ",null,"اليوم الثالث",null,"اليوم الرابع",null,"اليوم الخامس"]
[null,null,null,null,null,null,null,"الفترة","ص","م","ص","م","ص","م","ص","م","ص","م"]
["الرقم","اسم و لقب الحارس","المادة","المؤسسة ",null,"القاعات","الرمز"]
[1,"لحسايني محمد","اللغة الانجليزية","ثا.بوعزة ميلود مغنية ",null,1,"A"]
[2,"علي","اللغة العربية","ثا.بوعزة ميلود مغنية ",null,2,"A"]
[5,"سعيد ","اللغة الفرنسية","ثا.بوعزة ميلود مغنية ",null,3,"B"]
[6,"أيمن 1","التربية البدنية","ثا.بوعزة ميلود مغنية ",null,4,"C"]
[8,"لحسايني محمد","اللغة العربية","ثا.بوعزة ميلود مغنية ",null,5,"D"]
[9,"علي","علوم الطبيعة و الحياة ","ثا.بوعزة ميلود مغنية ",null,6,"A"]
[12,"سعيد ","اللغة العربية","إبتداية الخوارزمي - مغنية ",null,7,"A"]
[13,"أيمن 2","اللغة العربية","إبتداية الخوارزمي - مغنية ",null,8,"C"]
[15,"لحسايني محمد","اللغة العربية","إبتداية الخوارزمي - مغنية ",null,9,"C"]
[16,"علي","اللغة العربية","إبتداية الخوارزمي - مغنية ",null,10,"C"]
[19,"سعيد ","اللغة العربية","إبتداية الخوارزمي - مغنية ",null,11,"C"]
[20,"أيمن 3","اللغة العربية","إبتداية الخوارزمي - مغنية ",null,12,"D"]
[22,"لحسايني محمد","اللغة العربية","إبتداية الخوارزمي - مغنية ",null,13]
[23,"علي","اللغة العربية","إبتداية الخوارزمي - مغنية "]
[26,"سعيد ","التربية الإسلامية","متوسطة ابو هريرة "]
[27,"أيمن 4","اللغة الفرنسية","متوسطة ابو هريرة "]
[29,"لحسايني محمد","التاريخ والجغرافيا","متوسطة ابو هريرة "]
[30,"علي","الرياضيات","متوسطة ابو هريرة "]
[33,"سعيد ","اللغة الفرنسية","متوسطة ابو هريرة "]
[34,"أيمن 5","التربية الإسلامية","متوسطة ابو هريرة "]
[36,"لحسايني محمد","التاريخ والجغرافيا","متوسطة ابو هريرة "]
[37,"علي","التاريخ والجغرافيا","متوسطة ابو هريرة "]
[40,"سعيد ","التربية الإسلامية","متوسطة العابدي - صبرة "]
[41,"أيمن 6","اللغة الفرنسية","متوسطة العابدي - صبرة "]
[43,"لحسايني محمد","اللغة الفرنسية","متوسطة العابدي - صبرة "]
[]
[]
[]
[]
[]
[]
[]
[]
[]
[]
[]
[]
[]
[]
[]
[]
[]
[]
[]
[]
[]
[]
[]
[]
[]
[]
[]
[]
[]
[]
[]
[]
[]
[]
[]
[]
[]
[]
[3,"عائشة 1","اللغة العربية","ثا.بوعزة ميلود مغنية "]
[4,"رقية 1","التربية البدنية","ثا.بوعزة ميلود مغنية "]
[7,"فاطمة 1","معلوماتية ","ثا.بوعزة ميلود مغنية "]
[10,"عائشة 2","التربية البدنية","ثا.بوعزة ميلود مغنية "]
[11,"رقية 2","اللغة الفرنسية","ثا.بوعزة ميلود مغنية "]
[14,"فاطمة 2","اللغة العربية","إبتداية الخوارزمي - مغنية "]
[17,"عائشة 3","اللغة العربية","إبتداية الخوارزمي - مغنية "]
[18,"رقية 3","اللغة العربية","إبتداية الخوارزمي - مغنية "]
[21,"فاطمة 3","اللغة العربية","إبتداية الخوارزمي - مغنية "]
[24,"عائشة 4","اللغة الفرنسية","إبتداية الخوارزمي - مغنية "]
[25,"رقية 4","اللغة الفرنسية","إبتداية الخوارزمي - مغنية "]
[28,"فاطمة 4","التاريخ والجغرافيا","متوسطة ابو هريرة "]
[31,"عائشة 5","التاريخ والجغرافيا","متوسطة ابو هريرة "]
[32,"رقية 5","التربية الإسلامية","متوسطة ابو هريرة "]
[35,"فاطمة 5","اللغة الفرنسية","متوسطة ابو هريرة "]
[38,"عائشة 6","الرياضيات","متوسطة العابدي - صبرة "]
[39,"رقية 6","التاريخ والجغرافيا","متوسطة العابدي - صبرة "]
[42,"فاطمة 6","التربية الإسلامية","متوسطة العابدي - صبرة "]
[45,"عائشة 7","التاريخ والجغرافيا","متوسطة العابدي - صبرة "]
[46,"رقية 7","الرياضيات","متوسطة العابدي - صبرة "]
[49,"فاطمة 7","اللغة الفرنسية","متوسطة العابدي - صبرة "]
[52,"عائشة 8","اللغة العربية","متوسطة العابدي - صبرة "]
[53,"رقية 8","اللغة العربية","إبتداية الخوارزمي - مغنية "]
[56,"فاطمة 8","اللغة العربية","إبتداية الخوارزمي - مغنية "]
[59,"عائشة 9","التربية الإسلامية","ثا.المقـــري "]
[60,"رقية 9","اللغة الفرنسية","ثا.المقـــري "]
[63,"فاطمة 9","الرياضيات","ثا.المقـــري "]
[66,"عائشة 10","اللغة الفرنسية","ثا.المقـــري "]
[67,"رقية 10","التربية الإسلامية","ثا.المقـــري "]
[70,"فاطمة 10","اللغة الفرنسية","ثا.المقـــري "]
[73,"عائشة 11","التاريخ والجغرافيا","ثا.المقـــري "]
[74,"رقية 11","التاريخ والجغرافيا","ثا.المقـــري "]
[77,"فاطمة 11","التربية الإسلامية","ثا.المقـــري "]
[80,"عائشة 12","اللغة الفرنسية","ثا.المقـــري "]
[81,"رقية 12","اللغة العربية","إبتداية الخوارزمي - مغنية "]
[84,"فاطمة 12","اللغة العربية","إبتداية الخوارزمي - مغنية "]
[87,"عائشة 13","اللغة العربية","متوسطة ابو هريرة "]
[88,"رقية 13","اللغة العربية","متوسطة ابو هريرة "]
[89,"رقية 13","اللغة العربية","إبتداية الخوارزمي - مغنية "]
[92,"فاطمة 13","اللغة العربية","إبتداية الخوارزمي - مغنية "]
[95,"عائشة 14","اللغة العربية","متوسطة ابو هريرة "]
[96,"رقية 14","اللغة العربية","متوسطة ابو هريرة "]
[97,"رقية 14","اللغة العربية","إبتداية الخوارزمي - مغنية "]
[100,"فاطمة 14","اللغة العربية","إبتداية الخوارزمي - مغنية "]
[103,"عائشة 15","اللغة العربية","متوسطة ابو هريرة "]
[104,"رقية 15","اللغة العربية","متوسطة ابو هريرة "]
[105,"رقية 15","اللغة العربية","إبتداية الخوارزمي - مغنية "]
[107,"فاطمة 15","تكنولوجيا ","متوسطة العابدي - صبرة "]
[110,"عائشة 16","علوم الطبيعة و الحياة ","ثا.المقـــري "]
[111,"رقية 15","تكنولوجيا ","ثا.المقـــري "]
[112,"رقية 15","الفيزياء والكيمياء","ثا.المقـــري "]

{"sheet":"salim","index":3,"n_rows":0,"n_cols":0,"rows_kept":0,"cut":false,"hidden":true,"merged":[]}